bitfinex/quotes_SOLUSD_20230402
["timestamp","ask_amount","ask_price","bid_price","bid_amount"]
[1680408735091,17.0,21.003,21.0,40.0]
[1680408736886,10.0,21.002,21.0,40.0]
[1680408737186,17.0,21.001,21.0,40.0]
[1680408739180,10.0,21.004,21.0,40.0]
[1680408739386,20.0,21.003,21.0,40.0]
[1680408740587,17.0,21.002,21.0,40.0]
[1680408787061,20.0,21.003,21.0,40.0]
[1680408787246,17.0,21.002,21.0,40.0]
[1680408787551,17.0,21.004,21.0,40.0]
[1680408787732,20.0,21.003,21.0,40.0]
[1680408788046,17.0,21.002,21.0,40.0]
[1680408795859,10.0,21.001,21.0,40.0]
[1680408796152,27.0,21.001,21.0,40.0]
[1680408806369,17.0,21.001,21.0,40.0]
[1680408810470,20.0,21.003,21.0,40.0]
[1680408811761,17.0,21.002,21.0,40.0]
[1680408849488,10.0,21.001,21.0,40.0]
[1680408849693,27.0,21.001,21.0,40.0]
[1680408863087,34.13164547,21.001,21.0,40.0]
[1680408871384,17.0,21.001,21.0,40.0]
[1680408890620,60.09824845,21.007,21.0,40.0]
[1680408890823,21.47,21.01,21.0,40.0]
[1680408892006,10.0,21.008,21.0,40.0]
[1680408892207,17.0,21.007,21.0,40.0]
[1680408896015,17.0,21.008,21.0,40.0]
[1680408936761,10.0,21.007,21.0,40.0]
[1680408936952,17.0,21.006,21.0,40.0]
[1680408967601,10.0,21.007,21.0,40.0]
[1680408967780,17.0,21.006,21.0,40.0]
[1680408979117,17.0,21.006,21.0,40.0]
[1680408997615,17.0,21.008,21.0,40.0]
[1680409012020,10.0,21.007,21.0,40.0]
[1680409012214,17.0,21.006,21.0,40.0]
[1680409018233,10.0,21.005,21.0,40.0]
[1680409018412,17.0,21.004,21.0,40.0]
[1680409020324,10.0,21.003,21.0,40.0]
[1680409020529,17.0,21.002,21.0,40.0]
[1680409020710,10.0,21.001,21.0,40.0]
[1680409020910,27.0,21.001,21.0,40.0]
[1680409023332,17.0,21.001,21.0,40.0]
[1680409040036,60.50004245,21.008,21.0,40.0]
[1680409040240,10.0,21.009,21.0,40.0]
[1680409041825,17.0,21.008,21.0,40.0]
[1680409061760,27.13164547,21.007,21.0,40.0]
[1680409061950,27.0,21.006,21.0,40.0]
[1680409062152,20.0,21.005,21.0,40.0]
[1680409062449,27.0,21.004,21.0,40.0]
[1680409062656,20.0,21.003,21.0,40.0]
[1680409062850,17.0,21.002,21.0,40.0]
[1680409067545,7.13164547,21.008,21.0,40.0]
[1680409067753,31.47,21.01,21.0,40.0]
[1680409067940,17.0,21.007,21.0,40.0]
[1680409068136,17.0,21.008,21.0,40.0]
[1680409071651,10.0,21.007,21.0,40.0]
[1680409071960,10.0,21.005,21.0,40.0]
[1680409072162,17.0,21.004,21.0,40.0]
[1680409082067,10.0,21.002,21.0,40.0]
[1680409082254,17.0,21.001,21.0,40.0]
[1680409088678,17.13164547,21.007,21.0,40.0]
[1680409088862,10.0,21.011,21.0,40.0]
[1680409090380,17.0,21.008,21.0,40.0]
[1680409101294,112.52777367,21.015,21.0,40.0]
[1680409101594,59.28328677,21.015,21.001,10.0]
[1680409101777,10.0,21.015,21.001,10.0]
[1680409102775,17.0,21.011,21.001,10.0]
[1680409131424,17.0,21.011,21.0,50.0]
[1680409131916,17.0,21.011,21.001,10.0]
[1680409138636,17.0,21.011,21.0,40.0]
[1680409140821,17.0,21.011,21.001,10.0]
[1680409144332,17.0,21.01,21.001,10.0]
[1680409144522,17.0,21.012,21.001,10.0]
[1680409157444,21.44,21.01,21.001,10.0]
[1680409157647,17.0,21.009,21.001,10.0]
[1680409162951,10.0,21.015,21.002,20.0]
[1680409163149,17.0,21.014,21.003,10.0]
[1680409163330,17.0,21.014,21.005,10.0]
[1680409166037,17.0,21.015,21.005,10.0]
[1680409169241,17.0,21.016,21.005,10.0]
[1680409171446,10.0,21.019,21.005,10.0]
[1680409172744,17.0,21.018,21.005,10.0]
[1680409184974,10.0,21.017,21.005,10.0]
[1680409185270,17.0,21.016,21.005,10.0]
[1680409189770,17.0,21.018,21.005,10.0]
[1680409195262,10.0,21.017,21.005,10.0]
[1680409195472,17.0,21.016,21.005,10.0]
[1680409201679,17.0,21.016,21.003,10.0]
[1680409201976,17.0,21.016,21.005,10.0]
[1680409204387,31.5,21.02,21.005,10.0]
[1680409205489,10.0,21.019,21.005,10.0]
[1680409205672,17.0,21.018,21.005,10.0]
[1680409207476,17.0,21.019,21.005,10.0]
[1680409223894,17.0,21.019,21.005,10.0]
[1680409245704,10.0,21.018,21.005,10.0]
[1680409245905,17.0,21.017,21.005,10.0]
[1680409246111,10.0,21.016,21.005,10.0]
[1680409246310,17.0,21.015,21.005,10.0]
[1680409247202,17.0,21.017,21.005,10.0]
[1680409254107,17.0,21.018,21.005,10.0]
[1680409271626,10.0,21.017,21.004,20.0]
[1680409271933,17.0,21.016,21.004,20.0]
[1680409272123,10.0,21.015,21.004,20.0]
[1680409272320,17.0,21.014,21.004,20.0]
[1680409277638,17.0,21.016,21.004,20.0]
[1680409293036,10.0,21.015,21.001,20.0]
[1680409293350,21.44,21.01,21.001,20.0]
[1680409293550,17.0,21.009,21.001,20.0]
[1680409302767,17.0,21.009,21.0,40.0]
[1680409346485,10.0,21.008,21.0,40.0]
[1680409346687,17.0,21.007,21.0,40.0]
[1680409354903,10.0,21.006,21.0,40.0]
[1680409355103,17.0,21.005,21.0,40.0]
[1680409370823,20.0,21.004,21.0,40.0]
[1680409371030,17.0,21.003,21.0,40.0]
[1680409373720,10.0,21.002,21.0,40.0]
[1680409373919,17.0,21.001,21.0,40.0]
[1680409384025,142.8,20.994,20.969,12.62718378]
[1680409384230,21.44,20.98,20.967,12.62838826]
[1680409384428,20.0,20.979,20.967,12.12838826]
[1680409384613,37.13164547,20.979,20.964,113.919]
[1680409384812,21.44,20.97,20.964,113.919]
[1680409385014,10.0,20.968,20.964,113.919]
[1680409385428,17.0,20.967,20.964,113.919]
[1680409386316,27.0,20.969,20.956,10.0]
[1680409387017,10.0,20.968,20.956,10.0]
[1680409387221,17.0,20.967,20.956,10.0]
[1680409390430,10.0,20.966,20.952,10.0]
[1680409390636,17.0,20.965,20.953,20.0]
[1680409390848,10.0,20.964,20.953,20.0]
[1680409391154,17.0,20.963,20.953,20.0]
[1680409398538,17.0,20.963,20.951,115.0923]
[1680409398738,10.0,20.962,20.951,115.0923]
[1680409398959,17.0,20.961,20.951,115.0923]
[1680409399269,10.0,20.96,20.951,115.0923]
[1680409399448,17.0,20.959,20.951,115.0923]
[1680409400344,17.0,20.959,20.944,114.8939]
[1680409400662,10.0,20.958,20.945,115.5605]
[1680409400860,17.0,20.957,20.945,115.5605]
[1680409401542,10.0,20.956,20.945,115.5605]
[1680409401739,17.0,20.955,20.945,115.5605]
[1680409401943,17.0,20.955,20.946,10.0]
[1680409402460,10.0,20.956,20.945,115.5605]
[1680409402759,17.0,20.955,20.945,115.5605]
[1680409403456,17.0,20.955,20.946,10.0]
[1680409404158,10.0,20.956,20.946,10.0]
[1680409404456,17.0,20.955,20.946,10.0]
[1680409404659,17.0,20.957,20.946,10.0]
[1680409406142,17.0,20.957,20.945,115.5605]
[1680409406342,17.0,20.957,20.946,10.0]
[1680409410049,17.0,20.959,20.946,10.0]
[1680409416150,10.0,20.958,20.945,115.5605]
[1680409416465,17.0,20.957,20.946,10.0]
[1680409420857,10.0,20.958,20.945,115.5605]
[1680409421055,17.0,20.957,20.945,115.5605]
[1680409421773,17.0,20.957,20.946,10.0]
[1680409422272,17.0,20.959,20.946,10.0]
[1680409426671,10.0,20.958,20.946,10.0]
[1680409426866,17.0,20.957,20.946,10.0]
[1680409428563,17.0,20.959,20.946,10.0]
[1680409429979,10.0,20.965,20.946,10.0]
[1680409430286,10.0,20.962,20.946,10.0]
[1680409431366,10.0,20.96,20.946,10.0]
[1680409431586,17.0,20.959,20.946,10.0]
[1680409442485,10.0,20.965,20.946,10.0]
[1680409442689,20.0,20.963,20.946,10.0]
[1680409443290,10.0,20.963,20.946,10.0]
[1680409444070,10.0,20.961,20.946,10.0]
[1680409444295,17.0,20.96,20.946,10.0]
[1680409447691,10.0,20.959,20.945,115.5605]
[1680409447885,17.0,20.958,20.945,115.5605]
[1680409448277,17.0,20.958,20.946,10.0]
[1680409462406,17.0,20.957,20.946,10.0]
[1680409462596,17.0,20.959,20.946,10.0]
[1680409463506,10.0,20.958,20.946,10.0]
[1680409463706,17.0,20.957,20.946,10.0]
[1680409467498,17.0,20.957,20.946,10.0]
[1680409467897,17.0,20.959,20.946,10.0]
[1680409468097,10.0,20.958,20.946,10.0]
[1680409468301,17.0,20.957,20.946,10.0]
[1680409472424,17.0,20.958,20.946,10.0]
[1680409474820,17.0,20.958,20.945,115.5605]
[1680409477023,17.0,20.958,20.946,10.0]
[1680409485147,10.0,20.957,20.945,115.5605]
[1680409485347,17.0,20.956,20.945,115.5605]
[1680409488052,17.0,20.956,20.946,10.0]
[1680409488546,17.0,20.956,20.94,21.7]
[1680409488753,10.0,20.955,20.941,30.0]
[1680409488946,17.0,20.954,20.941,30.0]
[1680409495757,10.0,20.952,20.941,10.0]
[1680409495963,17.0,20.951,20.941,10.0]
[1680409496967,10.0,20.952,20.941,10.0]
[1680409497147,17.0,20.951,20.941,10.0]
[1680409510172,17.0,20.951,20.938,10.0]
[1680409510673,10.0,20.955,20.938,10.0]
[1680409510877,17.0,20.954,20.94,10.0]
[1680409511174,17.0,20.954,20.942,10.0]
[1680409511363,17.0,20.954,20.944,10.0]
[1680409517684,17.0,20.955,20.944,10.0]
[1680409521379,10.0,20.956,20.944,10.0]
[1680409522891,17.0,20.955,20.944,10.0]
[1680409524091,10.0,20.954,20.941,23.875]
[1680409524285,17.0,20.953,20.942,30.0]
[1680409528589,17.0,20.955,20.942,30.0]
[1680409529276,10.0,20.956,20.942,30.0]
[1680409530887,17.0,20.955,20.942,30.0]
[1680409536093,10.0,20.954,20.942,30.0]
[1680409536295,17.0,20.953,20.942,30.0]
[1680409537784,17.0,20.953,20.942,20.0]
[1680409541286,17.0,20.953,20.941,20.0]
[1680409541907,17.0,20.953,20.942,10.0]
[1680409542109,17.0,20.953,20.944,10.0]
[1680409543001,17.0,20.953,20.942,10.0]
[1680409543300,10.0,20.954,20.943,20.0]
[1680409543605,17.0,20.953,20.943,20.0]
[1680409545398,21.7,20.95,20.936,23.881]
[1680409545605,17.0,20.949,20.931,23.887]
[1680409545900,10.0,20.948,20.934,10.0]
[1680409546110,17.0,20.947,20.934,10.0]
[1680409554911,9.92106205,20.946,20.927,115.3446]
[1680409555114,10.0,20.944,20.934,20.0]
[1680409555312,17.0,20.943,20.934,20.0]
[1680409559111,17.0,20.945,20.934,20.0]
[1680409561116,17.0,20.945,20.928,10.0]
[1680409561117,10.0,20.943,20.928,10.0]
[1680409561318,17.0,20.942,20.928,10.0]
[1680409564728,9.92106205,20.946,20.928,10.0]
[1680409564923,20.0,20.945,20.934,10.0]
[1680409566336,17.0,20.944,20.934,10.0]
[1680409566517,20.0,20.943,20.93,21.66]
[1680409566719,17.0,20.942,20.934,115.3707]
[1680409567831,17.0,20.942,20.926,10.0]
[1680409568137,17.0,20.942,20.927,10.0]
[1680409568827,20.0,20.943,20.927,10.0]
[1680409569016,10.0,20.944,20.927,10.0]
[1680409569216,37.0,20.943,20.927,10.0]
[1680409569428,27.16,20.94,20.927,10.0]
[1680409569624,10.0,20.938,20.926,125.3707]
[1680409569823,17.0,20.937,20.926,125.3707]
[1680409572737,17.0,20.938,20.926,125.3707]
[1680409573742,27.16,20.94,20.926,125.3707]
[1680409575742,17.0,20.939,20.926,125.3707]
[1680409576544,10.0,20.938,20.926,115.3707]
[1680409576731,10.0,20.936,20.926,115.3707]
[1680409576937,10.0,20.938,20.927,10.0]
[1680409577136,17.0,20.937,20.927,10.0]
[1680409578036,17.0,20.939,20.927,10.0]
[1680409592126,17.0,20.941,20.927,10.0]
[1680409614557,20.0,20.943,20.927,10.0]
[1680409616049,10.0,20.943,20.927,10.0]
[1680409617063,17.0,20.942,20.927,10.0]
[1680409623370,10.0,20.942,20.927,10.0]
[1680409623573,17.0,20.941,20.927,10.0]
[1680409624172,10.0,20.94,20.926,115.3707]
[1680409624368,10.0,20.938,20.926,115.3707]
[1680409624570,17.0,20.937,20.926,115.3707]
[1680409627465,17.0,20.937,20.923,10.0]
[1680409638086,10.0,20.938,20.923,10.0]
[1680409638273,17.0,20.937,20.923,10.0]
[1680409638591,31.74,20.94,20.923,10.0]
[1680409640892,17.0,20.939,20.923,10.0]
[1680409645775,10.0,20.947,20.925,10.0]
[1680409647280,10.0,20.942,20.928,10.0]
[1680409647480,17.0,20.941,20.928,10.0]
[1680409648389,17.0,20.942,20.928,10.0]
[1680409656883,17.0,20.943,20.928,10.0]
[1680409657707,10.0,20.947,20.928,10.0]
[1680409657896,10.0,20.949,20.931,10.0]
[1680409658195,10.0,20.949,20.931,17.13164547]
[1680409658396,10.0,20.949,20.933,10.0]
[1680409658602,10.0,20.949,20.934,20.0]
[1680409658783,10.0,20.949,20.935,10.0]
[1680409659182,17.0,20.948,20.935,10.0]
[1680409674510,17.0,20.948,20.934,20.0]
[1680409676608,17.0,20.948,20.935,10.0]
[1680409692208,10.0,20.948,20.935,10.0]
[1680409692409,17.0,20.947,20.935,10.0]
[1680409693728,27.15,20.95,20.935,10.0]
[1680409693729,17.0,20.949,20.935,10.0]
[1680409702751,10.0,20.953,20.935,10.0]
[1680409704237,17.0,20.952,20.935,10.0]
[1680409712942,17.0,20.952,20.935,10.0]
[1680409727649,21.71,20.95,20.935,10.0]
[1680409727855,17.0,20.949,20.935,10.0]
[1680409757372,17.0,20.949,20.934,30.0]
[1680409757961,10.0,20.948,20.934,20.0]
[1680409758175,17.0,20.947,20.934,20.0]
[1680409758568,17.0,20.947,20.946,2.1083222]
[1680409853745,10.0,20.953,20.946,2.1083222]
[1680409855342,10.0,20.951,20.946,2.1083222]
[1680409855642,17.0,20.95,20.946,2.1083222]
[1680409857134,17.0,20.952,20.946,2.1083222]
[1680409863448,10.0,20.951,20.946,2.1083222]
[1680409863637,10.0,20.949,20.946,2.1083222]
[1680409863831,17.0,20.948,20.946,2.1083222]
[1680409868748,17.0,20.95,20.946,2.1083222]
[1680409868934,10.0,20.949,20.946,2.1083222]
[1680409869136,17.0,20.948,20.946,2.1083222]
[1680409872548,10.0,20.951,20.946,2.1083222]
[1680409872549,17.0,20.95,20.946,2.1083222]
[1680409888859,10.0,20.953,20.946,2.1083222]
[1680409889066,21.71,20.956,20.946,2.1083222]
[1680409889268,20.0,20.953,20.946,2.1083222]
[1680409890566,17.0,20.952,20.946,2.1083222]
[1680409915294,17.0,20.952,20.946,2.1083222]
[1680409916680,10.0,20.951,20.946,2.1083222]
[1680409916883,17.0,20.95,20.946,2.1083222]
[1680409918795,10.0,20.949,20.946,2.1083222]
[1680409919090,17.0,20.948,20.946,2.1083222]
[1680409920900,10.0,20.947,20.935,10.0]
[1680409921103,10.0,20.945,20.935,10.0]
[1680409921288,17.0,20.944,20.934,20.0]
[1680409921490,10.0,20.943,20.934,20.0]
[1680409921687,17.0,20.942,20.934,20.0]
[1680409924901,10.0,20.945,20.934,20.0]
[1680409924902,17.0,20.944,20.934,20.0]
[1680409938916,17.0,20.944,20.934,10.0]
[1680409944516,10.0,20.945,20.934,10.0]
[1680409944719,17.0,20.944,20.934,10.0]
[1680409946231,17.0,20.944,20.933,20.0]
[1680409951931,10.0,20.942,20.932,115.3798]
[1680409952119,17.0,20.941,20.932,115.3798]
[1680409958919,17.0,20.942,20.933,10.0]
[1680409960237,31.71,20.95,20.933,10.0]
[1680409960539,31.71,20.95,20.935,10.0]
[1680409961735,10.0,20.947,20.935,10.0]
[1680409961940,17.0,20.946,20.935,10.0]
[1680409967846,10.0,20.947,20.935,10.0]
[1680409968043,17.0,20.946,20.935,10.0]
[1680409971445,17.0,20.948,20.935,10.0]
[1680409978838,17.0,20.949,20.935,10.0]
[1680409979038,10.0,20.948,20.935,10.0]
[1680409979349,17.0,20.947,20.935,10.0]
[1680409982846,10.0,20.948,20.935,10.0]
[1680409983147,17.0,20.947,20.935,10.0]
[1680409991770,10.0,20.948,20.935,10.0]
[1680409992061,17.0,20.947,20.935,10.0]
[1680409996068,10.0,20.948,20.935,10.0]
[1680409996265,17.0,20.947,20.935,10.0]
[1680409998455,10.0,20.948,20.935,10.0]
[1680409998655,17.0,20.947,20.935,10.0]
[1680410009772,10.0,20.948,20.935,10.0]
[1680410009977,17.0,20.946,20.935,10.0]
[1680410010369,17.0,20.947,20.935,10.0]
[1680410013065,10.0,20.948,20.935,10.0]
[1680410013260,17.0,20.947,20.935,10.0]
[1680410018888,10.0,20.948,20.935,10.0]
[1680410019087,17.0,20.947,20.935,10.0]
[1680410028304,10.0,20.948,20.935,10.0]
[1680410028482,17.0,20.947,20.935,10.0]
[1680410033705,17.0,20.949,20.935,10.0]
[1680410036111,17.0,20.949,20.935,17.13164547]
[1680410036292,17.0,20.951,20.935,17.13164547]
[1680410038008,17.0,20.952,20.935,17.13164547]
[1680410049114,21.71,20.95,20.935,17.13164547]
[1680410049318,27.0,20.949,20.935,17.13164547]
[1680410054120,27.0,20.949,20.935,7.13164547]
[1680410062211,27.0,20.949,20.934,30.0]
[1680410065827,27.0,20.949,20.935,10.0]
[1680410068929,53.868,20.948,20.928,7.13164547]
[1680410069132,53.868,20.948,20.926,10.0]
[1680410069133,10.0,20.939,20.926,10.0]
[1680410069334,17.0,20.938,20.926,10.0]
[1680410072210,17.0,20.938,20.923,10.0]
[1680410076737,10.0,20.939,20.923,10.0]
[1680410076933,17.0,20.937,20.923,10.0]
[1680410077122,10.0,20.937,20.923,10.0]
[1680410077323,17.0,20.936,20.923,10.0]
[1680410079433,10.0,20.937,20.923,10.0]
[1680410079634,17.0,20.936,20.923,10.0]
[1680410090844,17.0,20.935,20.923,10.0]
[1680410091347,17.0,20.936,20.923,10.0]
[1680410098249,10.0,20.939,20.923,10.0]
[1680410099647,10.0,20.937,20.923,10.0]
[1680410099837,17.0,20.936,20.923,10.0]
[1680410104149,17.0,20.938,20.923,10.0]
[1680410104758,23.856,20.959,20.932,23.886]
[1680410104959,85.5996,20.955,20.933,20.0]
[1680410105261,21.5,20.95,20.934,10.0]
[1680410105459,21.5,20.95,20.934,17.13164547]
[1680410105654,21.5,20.95,20.936,10.0]
[1680410106057,10.0,20.954,20.936,86.40688713]
[1680410106358,10.0,20.954,20.936,204.34735832]
[1680410106561,10.0,20.954,20.938,10.0]
[1680410106762,10.0,20.954,20.94,10.0]
[1680410107059,10.0,20.954,20.941,20.0]
[1680410107355,10.0,20.954,20.941,27.13164547]
[1680410113146,10.0,20.954,20.942,10.0]
[1680410113347,17.0,20.953,20.943,20.0]
[1680410113546,17.0,20.953,20.944,10.0]
[1680410125368,10.0,20.959,20.944,10.0]
[1680410125575,10.0,20.961,20.944,119.1269]
[1680410126872,10.0,20.959,20.944,119.1269]
[1680410127073,17.0,20.958,20.944,119.1269]
[1680410132865,17.0,20.96,20.944,119.1269]
[1680410136977,44.12,20.96,20.944,119.1269]
[1680410138482,10.0,20.959,20.944,119.1269]
[1680410138777,17.0,20.958,20.944,119.1269]
[1680410145695,17.0,20.959,20.944,119.1269]
[1680410148683,27.12,20.96,20.944,119.1269]
[1680410148886,10.0,20.966,20.944,119.1269]
[1680410150879,10.0,20.96,20.944,119.1269]
[1680410151079,17.0,20.959,20.944,119.1269]
[1680410152796,10.0,20.96,20.944,119.1269]
[1680410152984,17.0,20.959,20.944,119.1269]
[1680410153489,10.0,20.966,20.944,195.57708214]
[1680410153678,10.0,20.966,20.946,10.0]
[1680410154085,10.0,20.966,20.946,17.13164547]
[1680410154388,10.0,20.966,20.948,10.0]
[1680410154883,37.0,20.964,20.948,10.0]
[1680410157898,37.0,20.964,20.948,10.0]
[1680410167489,37.0,20.964,20.951,10.0]
[1680410175409,10.0,20.963,20.948,10.0]
[1680410175712,10.0,20.961,20.947,112.068]
[1680410175905,10.0,20.959,20.947,112.068]
[1680410176289,17.0,20.958,20.947,112.068]
[1680410177911,17.0,20.959,20.947,112.068]
[1680410179115,17.0,20.959,20.948,10.0]
[1680410231868,16.88430706,20.959,20.948,10.0]
[1680410232470,20.0,20.964,20.948,10.0]
[1680410234774,17.0,20.963,20.948,10.0]
[1680410236978,17.0,20.963,20.951,10.0]
[1680410239090,10.0,20.962,20.947,112.068]
[1680410239381,31.52,20.96,20.947,112.068]
[1680410239581,17.0,20.959,20.947,112.068]
[1680410239786,17.0,20.959,20.948,10.0]
[1680410248890,17.0,20.959,20.947,112.068]
[1680410250279,10.0,20.958,20.945,10.0]
[1680410250498,10.0,20.956,20.945,10.0]
[1680410250793,17.0,20.955,20.945,10.0]
[1680410252491,17.0,20.957,20.945,10.0]
[1680410256999,17.0,20.959,20.945,10.0]
[1680410257199,10.0,20.958,20.945,10.0]
[1680410257400,17.0,20.957,20.945,10.0]
[1680410261490,17.0,20.959,20.945,10.0]
[1680410271399,10.0,20.96,20.945,10.0]
[1680410271605,17.0,20.959,20.945,10.0]
[1680410272005,17.0,20.959,20.945,17.13164547]
[1680410273622,17.0,20.959,20.945,10.0]
[1680410275915,17.0,20.959,20.945,17.13164547]
[1680410281617,17.0,20.959,20.947,10.0]
[1680410282018,17.0,20.959,20.947,17.13164547]
[1680410283224,20.0,20.964,20.947,17.13164547]
[1680410283435,20.0,20.964,20.949,10.0]
[1680410284724,17.0,20.963,20.949,10.0]
[1680410285110,17.0,20.963,20.951,10.0]
[1680410288223,19.094095,20.965,20.953,10.0]
[1680410288530,17.0,20.964,20.955,10.0]
[1680410290120,17.0,20.965,20.955,10.0]
[1680410301022,10.0,20.969,20.955,10.0]
[1680410301238,10.0,20.967,20.955,120.4289]
[1680410301439,17.0,20.966,20.955,120.4289]
[1680410306132,17.0,20.968,20.955,120.4289]
[1680410306647,10.0,20.967,20.955,120.4289]
[1680410306850,17.0,20.966,20.955,120.4289]
[1680410308138,10.0,20.969,20.955,120.4289]
[1680410308336,10.0,20.967,20.955,120.4289]
[1680410309046,10.0,20.967,20.955,230.146]
[1680410311555,10.0,20.969,20.955,230.146]
[1680410311738,17.0,20.968,20.955,230.146]
[1680410316441,10.0,20.969,20.955,230.146]
[1680410316746,17.0,20.968,20.955,230.146]
[1680410321147,17.0,20.969,20.955,230.146]
[1680410321446,10.0,20.968,20.955,230.146]
[1680410326546,17.0,20.969,20.955,230.146]
[1680410344169,10.0,20.968,20.955,230.146]
[1680410344371,10.0,20.966,20.955,230.146]
[1680410344577,17.0,20.965,20.955,230.146]
[1680410346677,17.0,20.967,20.955,230.146]
[1680410354191,10.0,20.968,20.955,230.146]
[1680410354389,17.0,20.967,20.955,230.146]
[1680410360901,10.0,20.968,20.955,230.146]
[1680410361101,17.0,20.967,20.955,230.146]
[1680410372605,17.0,20.969,20.955,230.146]
[1680410383117,10.0,20.968,20.955,220.146]
[1680410383319,10.0,20.966,20.955,220.146]
[1680410383519,17.0,20.965,20.955,220.146]
[1680410388725,10.0,20.966,20.955,220.146]
[1680410389022,17.0,20.965,20.955,220.146]
[1680410391135,17.0,20.967,20.955,220.146]
[1680410391833,10.0,20.966,20.955,220.146]
[1680410392036,17.0,20.965,20.955,220.146]
[1680410393050,21.52,20.96,20.955,220.146]
[1680410393330,27.0,20.959,20.955,220.146]
[1680410393535,27.0,20.959,20.94,19.087404]
[1680410393837,27.0,20.959,20.941,114.2604]
[1680410394133,10.0,20.958,20.941,114.2604]
[1680410394319,17.0,20.957,20.941,114.2604]
[1680410397436,10.0,20.956,20.941,114.2604]
[1680410397637,10.0,20.954,20.941,114.2604]
[1680410397938,17.0,20.953,20.941,114.2604]
[1680410399744,21.6,20.95,20.941,114.2604]
[1680410399931,17.0,20.949,20.941,114.2604]
[1680410401845,17.0,20.949,20.944,109.1269]
[1680410411148,10.0,20.948,20.944,109.1269]
[1680410411341,17.0,20.947,20.944,109.1269]
[1680410413451,17.0,20.947,20.941,114.2604]
[1680410418452,17.0,20.947,20.934,10.0]
[1680410418453,20.0,20.946,20.934,10.0]
[1680410418670,21.52,20.94,20.923,116.8373]
[1680410418871,17.0,20.939,20.923,116.8373]
[1680410419976,21.6,20.95,20.934,10.0]